Cogmind - Beta 16 @@@ ROGUE MODE // 2025.12.08 @ 21:43:12 Player: Grundleshunts Result: Destroyed by M9-UEW(R) with Subdweller Beam Cannon Performance ------------- Evolutions (0) 0 Regions Visited (2) 400 Robots Destroyed (24) 120 Value Destroyed (805) 805 Prototype IDs (5) 100 Alien Tech Used (0) 0 Bonus (0) 0 TOTAL SCORE: 1425 Bonus ------- None Cogmind --------- Core Integrity 0/250 Matter 197/300 Energy 160/160 System Corruption 0% Temperature Warm (173) Movement Treading (160) Location -10/Subcaves Parts ------- > --- POWER (1) -------- Light Nuclear Core > --- PROPULSION (2) --- Light Treads Light Treads > --- UTILITY (2) ------ Large Storage Unit Light Armor Plating > --- WEAPON (2) ------- Grenade Launcher > --- INVENTORY (15) --- Light Nuclear Core Light Treads Light Treads Light Treads Spiked Treads Flight Unit Flight Unit Flight Unit Flight Unit Sensor Array Seismic Detector Makeshift Hacking Suite Tractor Beam Peak State ------------ > --- POWER ------------ Light Nuclear Core > --- PROPULSION ------- Light Treads Light Treads > --- UTILITY ---------- Large Storage Unit > --- WEAPON ----------- Assault Rifle Light Assault Rifle > --- INVENTORY -------- Light Nuclear Core Light Treads Light Treads Light Treads Light Treads Light Treads Flight Unit Flight Unit Flight Unit Flight Unit Sensor Array Seismic Detector Makeshift Hacking Suite Tractor Beam Grenade Launcher [Rating: 10] Favorites ----------- Power Ion Engine Engine Ion Engine Power Core Light Nuclear Core Propulsion Light Treads Treads Light Treads Utility Large Storage Unit Storage Large Storage Unit Protection Light Armor Plating Weapon Light Assault Rifle Ballistic Gun Light Assault Rifle Launcher Grenade Launcher Build | -11 -10 -10 ------- Run | Yrd Mat Sub Slots Evolved . | . . . Power . | . . . Propulsion . | . . . Utility . | . . . Weapon . | . . . Parts Attached 17 | 6 6 5 Power 2 | 1 . 1 Engine 1 | 1 . . Core 1 | . . 1 Reactor . | . . . Propulsion 5 | 2 1 2 Treads 5 | 2 1 2 Leg . | . . . Wheel . | . . . Hover . | . . . Flight . | . . . Utility 7 | 1 5 1 Device . | . . . Storage 5 | 1 4 . Processor . | . . . Hackware . | . . . Protection 2 | . 1 1 Artifact . | . . . Weapon 3 | 2 . 1 Energy Gun . | . . . Energy Cannon . | . . . Ballistic Gun 2 | 2 . . Ballistic Cannon . | . . . Launcher 1 | . . 1 Special Weapon . | . . . Impact Weapon . | . . . Slashing Weapon . | . . . Piercing Weapon . | . . . Special Melee Weapon . | . . . Unidentified Prototypes . | . . . Parts Lost 4 | . 2 2 Power . | . . . Propulsion 1 | . 1 . Utility 1 | . 1 . Weapon 2 | . . 2 Highest Loss Streak 2 | . 2 2 To Critical Strikes . | . . . Average Backups 10 | . 8 14 Power 1 | . 2 1 Propulsion 5 | . 2 8 Utility 2 | . 2 3 Weapon . | . . . Tool/Special . | . . . Unused Backups 16 | . 3 13 Power 3 | . 2 1 Propulsion 8 | . . 8 Utility 4 | . . 4 Weapon 1 | . 1 . Tool/Special . | . . . Average Slot Usage (%) 87 | . 89 85 Engine 9 | . 14 5 Core 4 | . . 8 Treads 26 | . 24 28 Storage 15 | . 16 14 Protection 4 | . 4 5 Ballistic Gun 22 | . 28 16 Launcher 2 | . . 5 Peak Build Rating 10 | 6 8 10 Average Rating 7 | 4 6 8 On Entrance 4 | . 6 8 Avg Prop Armor Cover (%) . | . . . Naked Turns . | . . . Heaviest Build 108 | 13 108 108 Greatest Support 40 | 40 40 40 Greatest Overweight (x) 2 | 2 2 2 Average Overweight (x) . | . . . Largest Inventory Capacity 25 | 8 25 25 Average Capacity 15 | 6 15 15 Most Carried 15 | 1 15 15 Average Carried 10 | . 8 14 Final Capacity 25 | 8 25 15 Final Carried 15 | 1 15 13 Class Distribution -------------------- 100% | Mutant Dominant Class ---------------- Mutant | -10/Materials Mutant | -10/Subcaves Resources | -11 -10 -10 ----------- Run | Yrd Mat Sub Matter Collected 728 | 235 214 279 Remotely . | . . . Salvage Created 773 | . 401 372 Parts 44 | . 23 21 Haulers Intercepted 1 | . 1 . Recyclers Shooed . | . . . Parts Field Recycled . | . . . Retrieved Matter . | . . . Parts Self-Destructed 6 | . . 6 Prevented . | . . . Parts Restored . | . . . Kills | -11 -10 -10 ------- Run | Yrd Mat Sub Combat Hostiles Destroyed 22 | . 9 13 Guns 11 | . 9 2 AOE 11 | . . 11 Classes Destroyed 5 | . 4 1 Hauler 1 | . 1 . Watcher 1 | . 1 . Swarmer 3 | . 3 . Grunt 7 | . 6 1 Subdweller 12 | . . 12 Best Kill Streak 5 | . 4 5 Combat Bots Only 5 | . 3 5 Max Kills in Single Turn 2 | . 1 2 Gunslinging . | . . . Exploded 2 | . . 2 Melee . | . . . Uniques/NPCs Destroyed . | . . . Combat | -11 -10 -10 -------- Run | Yrd Mat Sub Hostile Shots Fired 119 | . 56 63 Missed 32 | . 12 20 Hits 87 | . 44 43 Projectile 87 | . 44 43 Critical Strikes 3 | . 1 2 Damage Taken 1314 | . 504 810 Core 261 | . 45 216 Absorbed by Shields . | . . . Core Remaining (%) 100 | 100 . . Volleys Fired 87 | . 41 46 Largest 2 | . 2 2 Hottest 40 | . 40 40 Shots Fired 149 | . 82 67 Gun 126 | . 82 44 Cannon . | . . . Launcher 23 | . . 23 Special . | . . . Kinetic 126 | . 82 44 Thermal . | . . . Explosive 23 | . . 23 Electromagnetic . | . . . Robot Hit Streak 32 | . 10 32 Robot Miss Streak 2 | . 2 2 Penetration Max . | . . . Secondary Targets 1 | . 1 . Max Gunslinging Chain 1 | . 1 . Shots Hit Robots 100 | . 50 50 Core Hits 48 | . 21 27 Critical Kills . | . . . Critical Parts Destroyed . | . . . Critical Strikes . | . . . Melee Attacks . | . . . Impact . | . . . Slashing . | . . . Piercing . | . . . Sneak Attacks . | . . . Combat Hostiles . | . . . Follow-up Attacks . | . . . Damage Inflicted 2169 | . 558 1611 Guns 908 | . 558 350 Cannons . | . . . Explosions 1261 | . . 1261 Melee . | . . . Ramming . | . . . Kinetic 908 | . 558 350 Thermal . | . . . Explosive 1261 | . . 1261 Electromagnetic . | . . . Impact . | . . . Slashing . | . . . Piercing . | . . . Highest Corruption . | . . . Average Corruption . | . . . Corruption Purged . | . . . Corruption Blocked . | . . . Overload Shots . | . . . Overflow Damage . | . . . Projectiles . | . . . Explosions . | . . . Melee . | . . . Knockbacks . | . . . Impact . | . . . Kinetic . | . . . Secondary . | . . . Self-Inflicted Damage 34 | . . 34 Shots 4 | . . 4 Rammed . | . . . Targets Rammed . | . . . Kicked . | . . . Crushed . | . . . Highest Temperature 256 | . 37 256 Average Temperature 22 | . 11 209 Received Heat Transfer 754 | . 249 505 Siege Activations . | . . . Martial Activations . | . . . Shielding Activations . | . . . Robots Disrupted . | . . . Combat Hostiles . | . . . Robots Corrupted . | . . . Combat Hostiles . | . . . Parts Fried . | . . . Impact Corruptions . | . . . Robots Melted . | . . . Combat Hostiles . | . . . Parts Melted . | . . . Heat Transferred . | . . . Parts Sabotaged . | . . . Parts Stolen . | . . . Parts Stripped . | . . . Power Chain Reactions . | . . . Alert | -11 -10 -10 ------- Run | Yrd Mat Sub Maximum Alert Level . | . . . Low Security (%) 100 | 100 100 . Level 1 . | . . . Level 2 . | . . . Level 3 . | . . . Level 4 . | . . . Level 5 . | . . . High Security . | . . . Max Security . | . . . Peak Influence 90 | . 90 . Initial . | . . . Average 18 | . 19 . Influence Increases 294 | . 264 30 Destroy 0b10 Robot/C 200 | . 180 20 Destroy 0b10 Robot/NC 10 | . 10 . Destroy Leader 44 | . 34 10 Successful Hack 24 | . 24 . Destroy Structure 1 | . 1 . Lose Combat Pursuer 15 | . 15 . Influence Decreases 294 | . 264 30 Time Decay 274 | . 244 30 Lost Part 20 | . 20 . Squads Dispatched 1 | . 1 . Investigation . | . . . Extermination . | . . . Reinforcement 1 | . 1 . Assault . | . . . Garrison . | . . . Intercept . | . . . Searches Triggered . | . . . Construction Impeded . | . . . Haulers Reinforced . | . . . Active Scanning Responses . | . . . Cargo Convoy Interrupts . | . . . Stealth | -11 -10 -10 --------- Run | Yrd Mat Sub Distress Signals 1 | . 1 . Communications Jammed . | . . . Distress Signals . | . . . Times Spotted 33 | . 20 13 Peak Tracking Total 4 | . 4 3 Tactical Retreats 1 | . 1 . Traps | -11 -10 -10 ------- Run | Yrd Mat Sub Traps Triggered . | . . . Indirectly . | . . . Trap Hack Attempts . | . . . Triggered . | . . . Disarmed 3 | . 3 . Reprogrammed . | . . . Reused . | . . . Traps Extracted . | . . . Installed . | . . . Triggered . | . . . Machines | -11 -10 -10 ---------- Run | Yrd Mat Sub Machines Disabled . | . . . Max in Single Turn . | . . . Machines Repaired . | . . . Machines Dismantled . | . . . Machines Sabotaged . | . . . Overloaded Fab Kills . | . . . Hacking | -11 -10 -10 --------- Run | Yrd Mat Sub Machines Accessed 7 | . 7 . Terminals 6 | . 6 . Fabricators . | . . . Repair Stations . | . . . Recycling Units 1 | . 1 . Scanalyzers . | . . . Garrison Access . | . . . Total Hacks 17 | . 17 . Successful 11 | . 11 . Failed 6 | . 6 . Catastrophic 1 | . 1 . Database Lockouts . | . . . Manual . | . . . Terminals 16 | . 16 . Fabricators . | . . . Repair Stations . | . . . Recycling Units 1 | . 1 . Scanalyzers . | . . . Garrison Access . | . . . Terminal Hacks 10 | . 10 . Record 1 | . 1 . Prototype ID Bank 3 | . 3 . Alert Level 2 | . 2 . Locate Traps 1 | . 1 . Disarm Traps 1 | . 1 . Investigation Status 1 | . 1 . Hauler Manifests 1 | . 1 . Fabricator Hacks . | . . . Repair Station Hacks . | . . . Recycling Unit Hacks 1 | . 1 . Report Inventory 1 | . 1 . Scanalyzer . | . . . Garrison Access Hacks . | . . . Unauthorized Hacks . | . . . Terminals . | . . . Fabricators . | . . . Repair Stations . | . . . Recycling Units . | . . . Scanalyzers . | . . . Garrison Access . | . . . Data Cores Recovered . | . . . Used . | . . . Hacking Detections 6 | . 6 . Full Trace Events . | . . . Feedback Events . | . . . Feedback Blocked . | . . . Robot Schematics Acquired . | . . . Robots Built . | . . . Authchips . | . . . Time . | . . . Total Robot Build Rating . | . . . Part Schematics Acquired . | . . . Parts Built . | . . . Authchips . | . . . Time . | . . . Total Part Build Rating . | . . . Part Studies Acquired . | . . . Parts Repaired . | . . . Time . | . . . Parts Recycled . | . . . Recycled Matter . | . . . Retrieved Matter . | . . . Retrieved Components . | . . . Parts Scanalyzed . | . . . Part Schematics Acquired . | . . . Parts Damaged . | . . . Bothacking | -11 -10 -10 ------------ Run | Yrd Mat Sub Used RIF Installer . | . . . Robots Hacked . | . . . Non-combat . | . . . Combat . | . . . Robot Hacks Applied . | . . . Relay Couplers Released . | . . . Fabnet Peak Effective % . | . . . Robots Rewired . | . . . Allies Hacked . | . . . Hacks Repelled . | . . . Allies | -11 -10 -10 -------- Run | Yrd Mat Sub Total Allies . | . . . Largest Group . | . . . Highest-Rated Group . | . . . Highest-Rated Ally . | . . . Total Orders . | . . . Ally Attacks . | . . . Total Damage . | . . . Kills . | . . . Allies Corrupted . | . . . Allies Melted . | . . . Intel | -11 -10 -10 ------- Run | Yrd Mat Sub Active Infowar (turns) . | . . . Robot Analysis Total . | . . . Derelict Logs Recovered . | . . . Drone Launches . | . . . Drone Recoveries . | . . . Exploration | -11 -10 -10 ------------- Run | Yrd Mat Sub Turns Passed 2257 | 57 1125 1075 Spaces Moved 1105 | 35 501 569 Core 13 | 13 . . Treads 1092 | 22 501 569 Legs . | . . . Wheels . | . . . Hover . | . . . Flight . | . . . Fastest Speed 50 | 50 160 160 Average Speed 172 | 136 185 163 Slowest Speed 320 | 160 320 320 Overloaded Moves . | . . . Propulsion Burnouts . | . . . Robots Hopped . | . . . Potential Cave-ins . | . . . Cave-ins Triggered . | . . . Exploration Rate (%) 42 | 4 85 37 Regions Visited 2 Branch Regions 1 Pre-discovered Areas . | . . . Known Exits Taken . | . . . Unknown Exits Taken 2 | 1 1 . Scrap Searched 3 | . . 3 Spaces Dug . | . . . Terrain Destroyed 75 | . . 75 Melee . | . . . Projectile . | . . . AOE 75 | . . 75 Terrain Rammed . | . . . Walls Destroyed . | . . . Machines Disabled . | . . . Actions | -11 -10 -10 --------- Run | Yrd Mat Sub Total 1318 | 41 625 652 Wait 72 | . 53 19 Move 1103 | 34 500 569 Hop . | . . . Pick Up 22 | 1 17 4 Fast Attach 12 | 6 5 1 Attach 1 | . . 1 Detach 2 | . 2 . Swap 4 | . 1 3 Drop 12 | . 6 6 Fire 87 | . 41 46 Melee . | . . . Ram . | . . . Kick . | . . . Crush . | . . . Escape Stasis . | . . . Rewire 3 | . . 3 Trap . | . . . Miscellaneous . | . . . Route ------- -11/Scrapyard -10/Materials (discovered 4 exits: [*Mat x2] / [*Min] / [*Sub]) -10/Subcaves History --------- Turn | Location | Event 18 | -11/Scrapyard | Discovered new exit (range 15) 58 | -11/Scrapyard | Entered Materials 305 | -10/Materials | Build established: Mutant 404 | -10/Materials | Discovered new exit (range 16) 1007 | -10/Materials | Discovered new exit (range 10) 1119 | -10/Materials | Discovered new exit (range 16) 1155 | -10/Materials | Discovered new exit (range 9) 1183 | -10/Materials | Entered Subcaves 1309 | -10/Subcaves | Core integrity fell below 50% 1492 | -10/Subcaves | A swath of the cavern ceiling suddenly collapsed 2223 | -10/Subcaves | A Subdweller sparked back to life 2223 | -10/Subcaves | A Subdweller sparked back to life 2223 | -10/Subcaves | A Subdweller sparked back to life 2229 | -10/Subcaves | Core integrity fell below 20% 2251 | -10/Subcaves | Shifting Twisted Machinery released Sub. Machine Gun 2252 | -10/Subcaves | Ambushed by Subdweller buried in earth 2258 | -10/Subcaves | Destroyed by M9-UEW(R) with Subdweller Beam Cannon Last Messages --------------- B6-36W(R) is broken beyond repair. GD-CJ2(R) creaks and sparks as it begins to move. B6-36W(R) creaks and sparks as it begins to move. U5-0JF(R) creaks and sparks as it begins to move. GD-CJ2(R) destroyed. U5-0JF(R) destroyed. NS-D0T(R): "ARGHSUB!" NS-D0T(R) destroyed. The unstable cave ceiling collapses. Sub. Optics crushed. The unstable cave ceiling collapses. Sub. Machine Gun falls loose from the Twisted Machinery. B6-36W(R) destroyed. [Achievement: Do Not Disturb] M9-UEW(R): "ARGHSUB!" Critical hit (Meltdown: +280). Map ----- +----------------------------------------------------+ | | | | | | | | | | | ?????????????????????????????????????????????????? | | ?????????????????????????????????????????????????? | | ?????????????????????????????????????????????????? | | ?????????????????????????????????????????????????? | | ?????????????????????????????????????????????????? | | ?????????????????????????????????????????????????? | | ?????????????????????????????????????????????????? | | ?????????????????????????????????????????????????? | | ?????????????????????????????????????????????????? | | ?????????????????????????????????????????????????? | | ?????????????????????????????????????????????????? | | ?????????????????????????????????????????????????? | | ?????????????????????????????????????????????????? | | ??????????????#????########??????????????????????? | | ?????????###### #### #?#####????????????????? | | ?????????# ## #""##???????????????? | | ########?# R """""??????????????? | | # # # ### = """""??????????????? | | ## ! ####[??????????????? | | # ?# =%[ * ##??????????????????? | | #### # ! ###@ ##???????????????????? | | # ??# # #??????????????????? | | ## # " " #???# ## "?????????????????? | | #### # " ## #??# #? #" ???????????????? | | #??######" ####??# ?? ##?##??????????????? | | ##???????# &" #?????# ??##??????????????????? | | ?????????#######?????## ??????????????????????? | | #?????????????????????# #??????????????????????? | | ##????????????????????## ##??????????????????????? | | #?????????????????????##????????????????????????? | | ##???????????????????????????????????????????????? | | #???????????????????????????????????????????????? | | ##???????????????????????????????????????????????? | | #????????????????????????????????????????????????? | | #????????????????????????????????????????????????? | | #????????????????????????????????????????????????? | | ????????????????????????????????????????????????? | | ???????????????????????????????????????????????? | | #??????????????????????????????????????????????? | | ##??????????????????????????????????????????????? | | #???????????????????????????????????????????????? | | #???????????????????????????????????????????????? | | ????????????????????????????????????????????????? | | ?????????????????????????????????????????????????? | | ?????????????????????????????????????????????????? | +----------------------------------------------------+ Best States ------------- Heat Dissipation 25 Energy Generation 14 Energy Capacity 250 Matter Stores 300 Matter Capacity 300 Sight Range 16 Terrain Scan Density 10 Armor Coverage 150 Evasion (%) 40 Recoil Reduction 2 Item Schematics ----------------- None Robot Schematics ------------------ None Fabricated ------------ Nothing Repaired ---------- Nothing Studied --------- None Alien Tech Used ----------------- None Achievements -------------- DATA ERROR: Steam Global Achievement% Do Not Disturb Organ Harvest There's More Where That Came From Challenges ------------ None Game ------ Seed MiniChromaticSteel Manual? 0 Play Time 00:31:32 Cumulative 23.9 hours Start 2025.12.08 @ 21:08:53 End 2025.12.08 @ 21:43:12 Sessions 1 Manual Loads 0 Difficulty Rogue Special Mode None Game No. 16 Rogue 16 Adventurer 0 Explorer 0 Win Type - Total 0 Types 0/0/0/0/0/0/0/0/0/0 Lore% 2 Gallery% 13 Achievement% 9 Wizard Run 0 Options --------- Layout 1 ASCII 0 Keyboard 0 Movement Numpad Keybinds 0 Fullscreen 2 Font 48/Smallcaps Map View 50x35 Zoom Use 0% Tactical HUD 0 Map Filters NONE Filters NONE Steam 1 RUN: 6161bad8-01ea-4190-8cd2-e45751a39ba3